Cogmind - Beta 15 @@@ ROGUE MODE // 2025.06.05 @ 20:08:59 // Winter2019/RPGLIKE Player: Jack Result: Self-destructed Performance ------------- Evolutions (2) 1000 Regions Visited (7) 1400 Robots Destroyed (59) 295 Value Destroyed (1395) 1395 Prototype IDs (5) 100 Alien Tech Used (0) 0 Bonus (-673) -673 TOTAL SCORE: 3517 Bonus ------- Friendly Fire -673 Cogmind --------- Core Integrity 300/1600 Matter 300/300 Energy 170/170 System Corruption 0% Temperature Cool (0) Movement Flying (32) Location -8/Materials Parts ------- > --- POWER (1) -------- Light Neutrino Core > --- PROPULSION (2) --- VTOL Module VTOL Module > --- UTILITY (1) ------ Experimental Core Analyzer > --- WEAPON (4) ------- Light Assault Rifle Light Assault Rifle Light Assault Rifle > --- INVENTORY (1) ---- 8R-AWN's Boregun Peak State ------------ > --- POWER ------------ Light Neutrino Core > --- PROPULSION ------- VTOL Module VTOL Module > --- UTILITY ---------- Experimental Core Analyzer > --- WEAPON ----------- Light Assault Rifle Light Assault Rifle Heavy Assault Rifle 8R-AWN's Boregun > --- INVENTORY -------- Grenade Launcher [Rating: 35] Favorites ----------- Power Light Ion Engine Engine Light Ion Engine Power Core Light Neutrino Core Propulsion VTOL Module Flight Unit VTOL Module Utility Experimental Core Analyzer Device Gravity Neutralizer Processor Experimental Core Analyzer Weapon Light Assault Rifle Energy Gun Small Laser Ballistic Gun Light Assault Rifle Launcher Grenade Launcher Build | -11 -10 -10 -9 -9 -9 -8 -8 ------- Run | Yrd Mat Min Mat Min Exi Min Mat Slots Evolved 4 | 4 . . . . . . . Power . | . . . . . . . . Propulsion 1 | 1 . . . . . . . Utility . | . . . . . . . . Weapon 3 | 3 . . . . . . . Parts Attached 20 | 3 9 . 1 . 6 . 1 Power 4 | . 2 . 1 . 1 . . Engine 3 | . 2 . 1 . . . . Core 1 | . . . . . 1 . . Reactor . | . . . . . . . . Propulsion 2 | . 2 . . . . . . Treads . | . . . . . . . . Leg . | . . . . . . . . Wheel . | . . . . . . . . Hover . | . . . . . . . . Flight 2 | . 2 . . . . . . Utility 3 | . . . . . 3 . . Device 2 | . . . . . 2 . . Storage . | . . . . . . . . Processor 1 | . . . . . 1 . . Hackware . | . . . . . . . . Protection . | . . . . . . . . Artifact . | . . . . . . . . Weapon 11 | 3 5 . . . 2 . 1 Energy Gun 4 | 2 2 . . . . . . Energy Cannon . | . . . . . . . . Ballistic Gun 6 | 1 3 . . . 1 . 1 Ballistic Cannon . | . . . . . . . . Launcher 1 | . . . . . 1 . . Special Weapon . | . . . . . . . . Impact Weapon . | . . . . . . . . Slashing Weapon . | . . . . . . . . Piercing Weapon . | . . . . . . . . Special Melee Weapon . | . . . . . . . . Unidentified Prototypes 5 | . . . . . 5 . . Parts Lost 1 | . . . . . 1 . . Power 1 | . . . . . 1 . . Propulsion . | . . . . . . . . Utility . | . . . . . . . . Weapon . | . . . . . . . . Highest Loss Streak 1 | . . . . . 1 . . To Critical Strikes 1 | . . . . . 1 . . Average Backups . | . . 1 1 1 1 1 1 Power . | . . . . . . . . Propulsion . | . . . . . . . . Utility . | . . . . . . . . Weapon . | . . 1 1 1 1 1 1 Tool/Special . | . . . . . . . . Unused Backups . | . . . . . . . . Power . | . . . . . . . . Propulsion . | . . . . . . . . Utility . | . . . . . . . . Weapon . | . . . . . . . . Tool/Special . | . . . . . . . . Average Slot Usage (%) 84 | . 72 87 87 87 83 100 99 Engine 5 | . 4 12 12 12 3 . . Core 3 | . . . . . 2 12 12 Flight 24 | . 23 25 25 25 25 25 25 Processor 3 | . . . . . 2 12 12 Energy Gun 6 | . 22 . . . . . . Ballistic Gun 39 | . 21 50 50 50 41 50 49 Launcher 2 | . . . . . 7 . . Peak Build Rating 35 | 3 9 9 9 9 26 34 35 Average Rating 14 | 2 7 9 9 9 14 34 33 On Entrance 12 | . 3 9 9 9 9 26 34 Naked Turns . | . . . . . . . . Heaviest Build 17 | 4 7 7 7 7 14 17 17 Greatest Support 25 | 8 13 13 13 13 25 18 18 Greatest Overweight (x) . | . . . . . . . . Average Overweight (x) . | . . . . . . . . Largest Inventory Capacity 1 | . 1 1 1 1 1 1 1 Average Capacity . | . . 1 1 1 1 1 1 Most Carried 1 | . 1 1 1 1 1 1 1 Average Carried . | . . 1 1 1 . 1 1 Final Capacity 1 | . 1 1 1 1 1 1 1 Final Carried 1 | . 1 1 1 1 1 1 1 Class Distribution -------------------- 60% | Scavenger-Sprinter 36% | Sprinter Dominant Class ---------------- Sprinter | -10/Materials Scavenger-Sprinter | -10/Mines Scavenger-Sprinter | -9/Materials Scavenger-Sprinter | -9/Mines Sprinter | -9/Exiles Scavenger-Sprinter | -8/Mines Scavenger-Sprinter | -8/Materials Resources | -11 -10 -10 -9 -9 -9 -8 -8 ----------- Run | Yrd Mat Min Mat Min Exi Min Mat Matter Collected 1438 | 230 154 . 126 36 496 109 287 Remotely . | . . . . . . . . Salvage Created 2448 | . 440 . 613 89 458 299 549 Parts 179 | . 33 . 34 2 64 13 33 Haulers Intercepted . | . . . . . . . . Recyclers Shooed 1 | . . . 1 . . . . Parts Field Recycled . | . . . . . . . . Retrieved Matter . | . . . . . . . . Parts Self-Destructed . | . . . . . . . . Prevented . | . . . . . . . . Kills | -11 -10 -10 -9 -9 -9 -8 -8 ------- Run | Yrd Mat Min Mat Min Exi Min Mat Combat Hostiles Destroyed 48 | . 13 . 14 . 5 6 10 Guns 44 | . 13 . 14 . 1 6 10 AOE 4 | . . . . . 4 . . Classes Destroyed 11 | . 5 . 2 . 2 . 2 Worker 3 | . 2 . . . . . 1 Builder 2 | . 1 . 1 . . . . Tunneler 2 | . . . 1 . . . 1 Recycler 1 | . . . . . . . 1 Mechanic 1 | . 1 . . . . . . Swarmer 14 | . 8 . . . . 3 3 Grunt 25 | . 5 . 12 . . 3 5 Brawler 2 | . . . 2 . . . . Sentry 2 | . . . . . . . 2 Zionite 2 | . . . . . 2 . . Assembled 6 | . . . . . 6 . . Thug 1 | . . . . 1 . . . Best Kill Streak 11 | . 8 . 11 . 4 3 6 Combat Bots Only 9 | . 8 . 9 . 4 3 5 Max Kills in Single Turn 3 | . 2 . 1 1 3 2 2 Gunslinging 1 | . 1 . . . . 1 . Exploded 3 | . . . . . 3 . . Melee . | . . . . . . . . Uniques/NPCs Destroyed 4 | . . . . . 4 . . 8R-AWN (-9/Exiles) EX-HEX (-9/Exiles) EX-BIN (-9/Exiles) EX-DEC (-9/Exiles) Combat | -11 -10 -10 -9 -9 -9 -8 -8 -------- Run | Yrd Mat Min Mat Min Exi Min Mat Hostile Shots Fired 246 | . 46 5 21 . 92 35 47 Missed 72 | . 17 . 12 . 14 11 18 Hits 174 | . 29 5 9 . 78 24 29 Melee 1 | . . . . . 1 . . Projectile 173 | . 29 5 9 . 77 24 29 AOE 5 | . . 5 . . . . . Critical Strikes 41 | . . . . . 40 . 1 Part Disruptions 2 | . . . . . . 2 . Damage Taken 2387 | . 262 213 102 . 1185 286 339 Core 1993 | . 223 185 88 . 987 237 273 Absorbed by Shields . | . . . . . . . . Redirected to Core 1268 | . 113 108 46 . 614 160 227 Ignored by Resistances 365 | . . . . . 315 16 34 Core Remaining (%) 50 | 100 . 40 . . . 10 . Volleys Fired 207 | . 39 . 29 9 89 15 26 Largest 4 | . 4 . 4 4 4 4 4 Hottest 140 | . 140 . 80 80 80 90 90 Shots Fired 721 | . 137 . 116 36 271 57 104 Gun 718 | . 137 . 116 36 268 57 104 Cannon . | . . . . . . . . Launcher 3 | . . . . . 3 . . Special . | . . . . . . . . Kinetic 645 | . 64 . 116 36 268 57 104 Thermal 56 | . 56 . . . . . . Explosive 3 | . . . . . 3 . . Electromagnetic 17 | . 17 . . . . . . Robot Hit Streak 17 | . 5 . 7 6 13 10 17 Robot Miss Streak 6 | . 6 . 4 2 4 5 5 Penetration Max 1 | . . . . . 1 1 1 Secondary Targets 9 | . 2 . 4 . . 2 1 Max Gunslinging Chain 1 | . 1 . 1 . . 1 1 Shots Hit Robots 423 | . 58 . 75 14 181 34 61 Core Hits 175 | . 27 . 38 6 59 13 32 Critical Kills 11 | . . . 1 . 1 2 7 Critical Parts Destroyed 7 | . . . . . 2 2 3 Critical Strikes 20 | . . . 1 . 4 5 10 Destroy 20 | . . . 1 . 4 5 10 Melee Attacks . | . . . . . . . . Impact . | . . . . . . . . Slashing . | . . . . . . . . Piercing . | . . . . . . . . Sneak Attacks . | . . . . . . . . Combat Hostiles . | . . . . . . . . Follow-up Attacks . | . . . . . . . . Damage Inflicted 4368 | . 586 . 637 155 1936 368 686 Guns 3987 | . 586 . 637 155 1555 368 686 Cannons . | . . . . . . . . Explosions 381 | . . . . . 381 . . Melee . | . . . . . . . . Ramming . | . . . . . . . . Kinetic 3667 | . 266 . 637 155 1555 368 686 Thermal 230 | . 230 . . . . . . Explosive 381 | . . . . . 381 . . Electromagnetic 90 | . 90 . . . . . . Impact . | . . . . . . . . Slashing . | . . . . . . . . Piercing . | . . . . . . . . Highest Corruption . | . . . . . . . . Average Corruption . | . . . . . . . . Corruption Purged . | . . . . . . . . Corruption Blocked . | . . . . . . . . Overload Shots . | . . . . . . . . Overflow Damage 5 | . . . . . 5 . . Projectiles . | . . . . . . . . Explosions 5 | . . . . . 5 . . Melee . | . . . . . . . . Knockbacks . | . . . . . . . . Impact . | . . . . . . . . Kinetic . | . . . . . . . . Secondary . | . . . . . . . . Self-Inflicted Damage . | . . . . . . . . Shots . | . . . . . . . . Rammed . | . . . . . . . . Targets Rammed . | . . . . . . . . Kicked . | . . . . . . . . Crushed . | . . . . . . . . Highest Temperature 356 | . 356 . 137 132 330 105 39 Average Temperature 90 | . 121 . 41 52 158 26 12 Received Heat Transfer 568 | . 66 . 57 . 38 254 153 Effects 1 | . . . . . 1 . . Matter Decay 1 | . . . . . 1 . . Siege Activations . | . . . . . . . . Martial Activations . | . . . . . . . . Shielding Activations . | . . . . . . . . Robots Disrupted . | . . . . . . . . Combat Hostiles . | . . . . . . . . Robots Corrupted . | . . . . . . . . Combat Hostiles . | . . . . . . . . Parts Fried . | . . . . . . . . Impact Corruptions . | . . . . . . . . Robots Melted . | . . . . . . . . Combat Hostiles . | . . . . . . . . Parts Melted . | . . . . . . . . Heat Transferred 525 | . 525 . . . . . . Parts Sabotaged . | . . . . . . . . Parts Stolen . | . . . . . . . . Parts Stripped . | . . . . . . . . Power Chain Reactions . | . . . . . . . . Alert | -11 -10 -10 -9 -9 -9 -8 -8 ------- Run | Yrd Mat Min Mat Min Exi Min Mat Maximum Alert Level 1 | . 1 . 1 . . . 1 Low Security (%) 72 | 100 74 100 41 100 . 100 64 Level 1 27 | . 25 . 58 . . . 35 Level 2 . | . . . . . . . . Level 3 . | . . . . . . . . Level 4 . | . . . . . . . . Level 5 . | . . . . . . . . High Security . | . . . . . . . . Max Security . | . . . . . . . . Peak Influence 346 | . 275 95 309 112 . 116 346 Initial 112 | . . 95 29 112 . . 29 Average 131 | . 118 88 195 95 . 74 174 Influence Increases 1335 | . 420 . 380 . . 138 397 Destroy 0b10 Robot/C 860 | . 260 . 280 . . 120 200 Destroy 0b10 Robot/NC 45 | . 20 . 10 . . . 15 Destroy Leader 160 | . 50 . 60 . . 10 40 Select Force Hacks 30 | . . . 30 . . . . Disable Machine 75 | . 15 . . . . . 60 Destroy Structure 15 | . . . . . . 8 7 Lose Combat Pursuer 150 | . 75 . . . . . 75 Influence Decreases 989 | . 174 171 166 217 72 60 129 Entered New Map 495 | . . 151 46 177 72 . 49 Time Decay 494 | . 174 20 120 40 . 60 80 Squads Dispatched 9 | . 3 . 4 . . . 2 Investigation 5 | . 3 . 2 . . . . Extermination . | . . . . . . . . Reinforcement 3 | . . . 2 . . . 1 Assault . | . . . . . . . . Garrison 1 | . . . . . . . 1 Intercept . | . . . . . . . . Searches Triggered . | . . . . . . . . Construction Impeded . | . . . . . . . . Haulers Reinforced . | . . . . . . . . Active Scanning Responses . | . . . . . . . . Cargo Convoy Interrupts . | . . . . . . . . Stealth | -11 -10 -10 -9 -9 -9 -8 -8 --------- Run | Yrd Mat Min Mat Min Exi Min Mat Distress Signals 4 | . . . 2 . . . 2 Communications Jammed . | . . . . . . . . Distress Signals . | . . . . . . . . Times Spotted 97 | . 23 2 17 . 23 9 23 Peak Tracking Total 9 | . 6 2 5 . 9 5 7 Tactical Retreats 13 | . 2 . . . 8 1 2 Traps | -11 -10 -10 -9 -9 -9 -8 -8 ------- Run | Yrd Mat Min Mat Min Exi Min Mat Traps Triggered 3 | . 2 . 1 . . . . Indirectly . | . . . . . . . . Trap Hack Attempts . | . . . . . . . . Triggered . | . . . . . . . . Disarmed . | . . . . . . . . Reprogrammed . | . . . . . . . . Reused . | . . . . . . . . Traps Extracted . | . . . . . . . . Installed . | . . . . . . . . Triggered . | . . . . . . . . Machines | -11 -10 -10 -9 -9 -9 -8 -8 ---------- Run | Yrd Mat Min Mat Min Exi Min Mat Machines Disabled 10 | . 1 . . . 5 . 4 Max in Single Turn 1 | . 1 . . . 1 . 1 Machines Repaired . | . . . . . . . . Machines Dismantled . | . . . . . . . . Machines Sabotaged . | . . . . . . . . Overloaded Fab Kills . | . . . . . . . . Hacking | -11 -10 -10 -9 -9 -9 -8 -8 --------- Run | Yrd Mat Min Mat Min Exi Min Mat Machines Accessed 5 | . 1 . 1 1 . . 2 Terminals 1 | . . . . . . . 1 Fabricators . | . . . . . . . . Repair Stations 1 | . 1 . . . . . . Recycling Units . | . . . . . . . . Scanalyzers 2 | . . . 1 . . . 1 Garrison Access . | . . . . . . . . Total Hacks 12 | . 5 . 1 1 . . 5 Successful 4 | . . . 1 1 . . 2 Failed 8 | . 5 . . . . . 3 Catastrophic 2 | . 2 . . . . . . Database Lockouts . | . . . . . . . . Manual 5 | . . . 1 . . . 4 Terminals 4 | . . . . . . . 4 Fabricators . | . . . . . . . . Repair Stations 5 | . 5 . . . . . . Recycling Units . | . . . . . . . . Scanalyzers 2 | . . . 1 . . . 1 Garrison Access . | . . . . . . . . Terminal Hacks 2 | . . . . 1 . . 1 Open Door 1 | . . . . 1 . . . Scanalyzer Index 1 | . . . . . . . 1 Fabricator Hacks . | . . . . . . . . Repair Station Hacks . | . . . . . . . . Recycling Unit Hacks . | . . . . . . . . Scanalyzer 1 | . . . . . . . 1 Insert Component 1 | . . . . . . . 1 Garrison Access Hacks . | . . . . . . . . Unauthorized Hacks 1 | . . . 1 . . . . Terminals . | . . . . . . . . Fabricators . | . . . . . . . . Repair Stations . | . . . . . . . . Recycling Units . | . . . . . . . . Scanalyzers 1 | . . . 1 . . . . Extract 1 | . . . 1 . . . . Garrison Access . | . . . . . . . . Data Cores Recovered . | . . . . . . . . Used . | . . . . . . . . Hacking Detections 2 | . 1 . . . . . 1 Full Trace Events 1 | . 1 . . . . . . Feedback Events . | . . . . . . . . Feedback Blocked . | . . . . . . . . Robot Schematics Acquired . | . . . . . . . . Robots Built . | . . . . . . . . Authchips . | . . . . . . . . Time . | . . . . . . . . Total Robot Build Rating . | . . . . . . . . Part Schematics Acquired 2 | . . . 2 . . . . Parts Built . | . . . . . . . . Authchips . | . . . . . . . . Time . | . . . . . . . . Total Part Build Rating . | . . . . . . . . Parts Repaired . | . . . . . . . . Time . | . . . . . . . . Parts Recycled . | . . . . . . . . Recycled Matter . | . . . . . . . . Retrieved Matter . | . . . . . . . . Retrieved Components . | . . . . . . . . Parts Scanalyzed . | . . . . . . . . Part Schematics Acquired . | . . . . . . . . Parts Damaged . | . . . . . . . . Bothacking | -11 -10 -10 -9 -9 -9 -8 -8 ------------ Run | Yrd Mat Min Mat Min Exi Min Mat Used RIF Installer . | . . . . . . . . Robots Hacked . | . . . . . . . . Non-combat . | . . . . . . . . Combat . | . . . . . . . . Robot Hacks Applied . | . . . . . . . . Relay Couplers Released . | . . . . . . . . Fabnet Peak Effective % . | . . . . . . . . Robots Rewired . | . . . . . . . . Allies Hacked . | . . . . . . . . Hacks Repelled . | . . . . . . . . Allies | -11 -10 -10 -9 -9 -9 -8 -8 -------- Run | Yrd Mat Min Mat Min Exi Min Mat Total Allies . | . . . . . . . . Largest Group . | . . . . . . . . Highest-Rated Group . | . . . . . . . . Highest-Rated Ally . | . . . . . . . . Total Orders . | . . . . . . . . Ally Attacks . | . . . . . . . . Total Damage . | . . . . . . . . Kills . | . . . . . . . . Allies Corrupted . | . . . . . . . . Allies Melted . | . . . . . . . . Intel | -11 -10 -10 -9 -9 -9 -8 -8 ------- Run | Yrd Mat Min Mat Min Exi Min Mat Active Infowar (turns) . | . . . . . . . . Robot Analysis Total . | . . . . . . . . Derelict Logs Recovered 1 | . . 1 . . . . . Drone Launches . | . . . . . . . . Drone Recoveries . | . . . . . . . . Exploration | -11 -10 -10 -9 -9 -9 -8 -8 ------------- Run | Yrd Mat Min Mat Min Exi Min Mat Turns Passed 1594 | 32 458 44 240 85 435 129 171 Spaces Moved 2439 | 55 637 134 429 190 509 259 226 Core 89 | 55 34 . . . . . . Treads . | . . . . . . . . Legs . | . . . . . . . . Wheels . | . . . . . . . . Hover . | . . . . . . . . Flight 2350 | . 603 134 429 190 509 259 226 Fastest Speed 32 | 50 32 32 32 32 32 32 32 Average Speed 32 | 50 32 32 32 32 32 32 32 Slowest Speed 50 | 50 50 32 32 32 32 32 32 Overloaded Moves . | . . . . . . . . Propulsion Burnouts . | . . . . . . . . Robots Hopped 17 | . 7 2 2 . 1 3 2 Potential Cave-ins . | . . . . . . . . Cave-ins Triggered . | . . . . . . . . Exploration Rate (%) 47 | 3 59 47 35 59 90 49 35 Regions Visited 7 Branch Regions 4 Pre-discovered Areas 1 | . . 1 . . . . . Known Exits Taken . | . . . . . . . . Unknown Exits Taken 7 | 1 1 1 1 1 1 1 . Scrap Searched 4 | . . 1 . 1 . 2 . Spaces Dug . | . . . . . . . . Terrain Destroyed 28 | . . . . . 12 9 7 Melee . | . . . . . . . . Projectile 16 | . . . . . . 9 7 AOE 12 | . . . . . 12 . . Terrain Rammed . | . . . . . . . . Walls Destroyed . | . . . . . . . . Machines Disabled . | . . . . . . . . Actions | -11 -10 -10 -9 -9 -9 -8 -8 --------- Run | Yrd Mat Min Mat Min Exi Min Mat Total 2848 | 57 795 132 480 198 640 272 274 Wait 153 | . 110 1 3 . 29 . 10 Move 2399 | 54 623 129 424 189 506 252 222 Hop 16 | . 6 2 2 . 1 3 2 Pick Up 2 | . 1 . . . 1 . . Fast Attach 17 | 3 8 . . . 5 . 1 Attach . | . . . . . . . . Detach 1 | . . . . . . . 1 Swap 9 | . 1 . 1 . 5 1 1 Drop 13 | . 5 . 1 . 4 . 3 Fire 207 | . 39 . 29 9 89 15 26 Melee . | . . . . . . . . Ram . | . . . . . . . . Kick . | . . . . . . . . Crush . | . . . . . . . . Escape Stasis . | . . . . . . . . Rewire . | . . . . . . . . Trap . | . . . . . . . . Miscellaneous 31 | . 2 . 20 . . 1 8 Route ------- -11/Scrapyard -10/Materials (discovered 3 exits: *Mat x2 / [*Min]) -10/Mines -9/Materials (discovered 3 exits: *Mat / *Min / [*Sto]) -9/Mines (discovered 2 exits: *Mat / *Exi) -9/Exiles -8/Mines -8/Materials (discovered 1 exit: [*Fac]) History --------- Turn | Location | Event 1 | -11/Scrapyard | Upgraded with Propulsion slot (x1) 1 | -11/Scrapyard | Upgraded with Weapon slot (x3) 12 | -11/Scrapyard | Discovered new exit (range 15) 33 | -11/Scrapyard | Entered Materials 110 | -10/Materials | Discovered new exit (range 7) 337 | -10/Materials | Build established: Sprinter 387 | -10/Materials | Reached level 2 418 | -10/Materials | Destroyed 8 combat bots 444 | -10/Materials | Discovered new exit (range 15) 462 | -10/Materials | Discovered new exit (range 5) 491 | -10/Materials | Entered Mines 498 | -10/Mines | Learned location of Zion (-7) 522 | -10/Mines | Assembled infested the area 523 | -10/Mines | YI-UF0 nonchalantly dropped a Grenade Launcher on the ground 533 | -10/Mines | Core integrity fell below 50% 533 | -10/Mines | Discovered new exit (range 8) 535 | -10/Mines | Entered Materials 536 | -9/Materials | Core integrity fell below 50% 537 | -9/Materials | Reached level 3 627 | -9/Materials | Reached level 4 637 | -9/Materials | Discovered new exit (range 16) 665 | -9/Materials | Destroyed 9 combat bots 699 | -9/Materials | Build established: Scavenger-Sprinter 718 | -9/Materials | Discovered new exit (range 16) 773 | -9/Materials | Discovered new exit (range 9) 775 | -9/Materials | Entered Mines 784 | -9/Mines | Discovered new exit (range 8) 791 | -9/Mines | Received a Rocket Launcher from a helpful Derelict 808 | -9/Mines | Found a damaged Exp. Sensor Array with a note attached 829 | -9/Mines | Found the Drone Emporium 859 | -9/Mines | Deemed a non-threat by the Exiles lab entrance 859 | -9/Mines | Discovered new exit (range 5) 860 | -9/Mines | Entered Exiles 862 | -9/Exiles | Reached level 5 868 | -9/Exiles | Met 8R-AWN 873 | -9/Exiles | Met EX-HEX 878 | -9/Exiles | Attacked by the Exiles 939 | -9/Exiles | Core integrity fell below 20% 1001 | -9/Exiles | Destroyed 8R-AWN 1013 | -9/Exiles | Found Prototype Ballistic Gun 1033 | -9/Exiles | Identified 8R-AWN's Boregun 1138 | -9/Exiles | Destroyed EX-HEX 1149 | -9/Exiles | Destroyed EX-BIN 1187 | -9/Exiles | Destroyed EX-DEC 1200 | -9/Exiles | Found Prototype Processor 1200 | -9/Exiles | Identified Exp. Core Analyzer 1291 | -9/Exiles | Discovered new exit (range 15) 1295 | -9/Exiles | Entered Mines 1358 | -8/Mines | AD-0RF came to Exiles' defense 1382 | -8/Mines | Discovered new exit (range 10) 1424 | -8/Mines | Entered Materials 1425 | -8/Materials | Core integrity fell below 50% 1425 | -8/Materials | Core integrity fell below 20% 1426 | -8/Materials | Reached level 6 1438 | -8/Materials | Reached level 7 1552 | -8/Materials | Garrison activated, responded to threat 1591 | -8/Materials | Discovered new exit (range 12) 1595 | -8/Materials | Self-destructed Last Messages --------------- HV Slug penetrates Wall. Acquired 9 matter. Critical hit (Burn: +37). R-06 Scavenger collects Imp. Heat Sink. HV Slug penetrates G-47 Trooper. G-47 Trooper suffers critical hit (Destroy). G-47 Trooper destroyed. HV Slug penetrates R-06 Scavenger. R-06 Scavenger destroyed. Acquired 9 matter. K-01 Serf collects debris. Upgraded: Core Integrity (+250) Slug penetrates Wall. EXIT=FOUND Connecting with Scanalyzer... Dropped Grenade Launcher. K-01 Serf cleans the Scanalyzer. Connecting with Scanalyzer... >>Insert(8R-AWN's Boregun) Scanning 8R-AWN's Boregun... Map ----- +----------------------------------------------------+ | | | | | | | | | | | | | | | | | | | | | | | | | | | | | | | | | | | | | | | ????????????????????##########?????????????????? | | ????????????????????# ##????????????????? | | ????????????????????# #????????????????? | | ????????????????????# Y#?????????????????? | | ????????????????????#""" #?????????????????? | | ????????????????????#""" [/#?????????????????? | | ????????????????????#"S@ [/#?????????????????? | | ????????????????????#""" #?????????????????? | | ????????????????????# "" #?????????????????? | | ????????????????????# k #??????+###???????? | | ????????????#############+######## #???????? | | ????????????# = #???????? | | ????????????# < #???????? | | ????????????# #???????? | | ????????????####+####### ####### #???????? | | ???????????????????????# #?????????###???????? | | ???????????????????????# #???????????????????? | | ???????????????????????# #?????""????????????? | | ???????????????????????# #?????""????????????? | | ???????????????????????# #?????""????????????? | | ??????????????????????## ##???? ????????????? | | ??????????????????????# #####+############## | | ??????????????????????# | | ??????????????????????# T | | ??????????????????????# | | ??????????????????????# #### #########???? | | ??????????????????????#######??# # ???? | | ???????????????????????????????# # """ ""???? | | ??????????????????????########## + """ ??????? | | ??????????????????????# ! # #???????????? | | ??????????????????????# # #???????????? | +----------------------------------------------------+ Best States ------------- Heat Dissipation 49 Energy Generation 19 Energy Capacity 170 Matter Stores 300 Matter Capacity 300 Sight Range 20 Terrain Scan Density 10 Resistance: KI 20 Evasion (%) 63 Core Analysis 8 Offensive Hacking 20 Item Schematics ----------------- Field Recycling Unit | -9/Materials | Extracted Imp. Treads | -9/Materials | Extracted Robot Schematics ------------------ None Fabricated ------------ Nothing Repaired ---------- Nothing Alien Tech Used ----------------- None Achievements -------------- None Challenges ------------ None RPGLIKE | -11 -10 -10 -9 -9 -9 -8 -8 --------- Run | Yrd Mat Min Mat Min Exi Min Mat Levels Raised 6 | . 1 . 2 . 1 . 2 XP Earned 13325 | 3000 1625 500 3350 500 200 1150 3000 XP Spent 11970 | 3000 1350 . 750 . 3170 725 2975 Upgrades 43 | 5 5 . 1 . 18 5 9 Propulsion Slot 1 | 1 . . . . . . . Weapon Slot 3 | 3 . . . . . . . Core Integrity 20 | . . . . . 10 5 5 Heat Dissipation 4 | . 1 . . . 3 . . Mass Support 2 | 1 . . . . 1 . . Inventory Capacity 1 | . 1 . . . . . . Sight Range 4 | . . . . . 4 . . Hack Attack % 4 | . . . . . . . 4 KI Resistance % 4 | . 3 . 1 . . . . Protomatter Created 390 | . 105 . 179 . 5 5 96 Integrity Restored 693 | . 48 . 447 . . 15 183 Core 693 | . 48 . 447 . . 15 183 Protomatter Decayed 69 | . . . 69 . . . . Game ------ Seed ServoCorruptionMegatreads Manual? 0 Play Time 00:25:55 Cumulative 256.8 hours Start 2025.06.05 @ 19:45:24 End 2025.06.05 @ 20:08:59 Sessions 1 Manual Loads 0 Difficulty Rogue Special Mode Winter2019/RPGLIKE Game No. 254 Rogue 65 Adventurer 177 Explorer 12 Win Type - Total 65 Types 19/1/16/2/12/0/4/5/0/6 Lore% 54 Gallery% 53 Achievement% 70 Wizard Run 0 Options --------- Layout 0 ASCII 0 Keyboard 0 Movement Numpad Keybinds 0 Fullscreen 2 Font 12/Smallcaps Map View 83x54 Zoom Use 0% Tactical HUD 0 Map Filters NONE Filters NONE Steam 1 RUN: 216b0438-3dbe-489a-aa6d-a2601997d377